fUSD/lending_fUSD_20260622
["ID","MTS","AMOUNT","RATE_DAILY","PERIOD"]
[425969020,1782059448000,-165.29683498,0.00024254,2]
[425969042,1782059448000,-396.28,0.00024581,2]
[425969063,1782059448000,-250.0,0.00024658,15]
[425969015,1782059448000,-3536.99453995,0.00024243,2]
[425969016,1782059448000,-233.5188934,0.00024254,2]
[425969019,1782059448000,-2781.82699784,0.00024254,2]
[425969017,1782059448000,-227.30708409,0.00024254,2]
[425969022,1782059448000,-3536.99453995,0.000243,2]
[425969021,1782059448000,-235.45835666,0.00024254,2]
[425969026,1782059448000,-3536.99453995,0.00024351,2]
[425969024,1782059448000,-3536.99453995,0.00024326,2]
[425969025,1782059448000,-150.0,0.00024333,2]
[425969018,1782059448000,-501.38597833,0.00024254,2]
[425969023,1782059448000,-208.8,0.00024324,2]
[425969029,1782059448000,-356.0,0.00024382,10]
[425969027,1782059448000,-847.0,0.00024376,2]
[425969028,1782059448000,-201.69970556,0.00024382,2]
[425969031,1782059448000,-156789.0,0.000244,2]
[425969034,1782059448000,-3536.99453995,0.00024454,2]
[425969032,1782059448000,-3536.99453995,0.00024403,2]
[425969035,1782059448000,-3536.99453995,0.00024468,2]
[425969037,1782059448000,-1229.0,0.00024493,2]
[425969033,1782059448000,-3536.99453995,0.00024433,2]
[425969030,1782059448000,-3536.99453995,0.00024398,2]
[425969036,1782059448000,-201.442221,0.00024475,2]
[425969039,1782059448000,-644.08,0.00024568,2]
[425969038,1782059448000,-41650.57,0.000245,7]
[425969040,1782059448000,-185.21,0.00024581,2]
[425969066,1782059448000,-500.0,0.00024658,15]
[425969050,1782059448000,-644.31,0.0002461,2]
[425969070,1782059448000,-500.0,0.00024658,15]
[425969106,1782059448000,-326.0,0.00025,2]
[425969105,1782059448000,-51868.10678074,0.00025,4]
[425969098,1782059448000,-585.66,0.00024979,2]
[425969104,1782059448000,-29438.06298811,0.00025,2]
[425969103,1782059448000,-267674.35340333,0.00025,2]
[425969119,1782059448000,-860.37330386,0.00025348,2]
[425969109,1782059448000,-175.67946025,0.00025,2]
[425969108,1782059448000,-530.0,0.00025,2]
[425969110,1782059448000,-173.0,0.00025,2]
[425969118,1782059448000,-621.78829552,0.00025348,2]
[425969117,1782059448000,-14446.6800873,0.0002534,2]
[425969116,1782059448000,-3206.23114603,0.00025338,2]
[425969112,1782059448000,-669.0,0.00025,2]
[425969111,1782059448000,-299.0,0.00025,2]
[425969113,1782059448000,-528.0,0.00025,2]
[425969114,1782059448000,-5529.0,0.000251,3]
[425969115,1782059448000,-183.92733603,0.00025314,2]
[425969122,1782059448000,-2991.49051684,0.0002535,2]
[425969120,1782059448000,-251.11897888,0.0002535,2]
[425969121,1782059448000,-501.38597845,0.0002535,2]
[425969125,1782059448000,-1270.0,0.00025351,2]
[425969126,1782059448000,-585.66,0.00025369,2]
[425969127,1782059448000,-33689.6628,0.0002537,15]
[425969123,1782059448000,-165.29683509,0.0002535,2]
[425969124,1782059448000,-235.45835683,0.0002535,2]
[425969100,1782059448000,-500.0,0.00024999,2]
[425969102,1782059448000,-500.0,0.00024999,2]
[425969069,1782059448000,-500.0,0.00024658,15]
[425969101,1782059448000,-500.0,0.00024999,2]
[425969099,1782059448000,-585.66,0.00024999,2]
[425969074,1782059448000,-151.0,0.00024658,2]
[425969078,1782059448000,-24696.6211518,0.00024662,2]
[425969077,1782059448000,-71201.5839163,0.00024662,2]
[425969076,1782059448000,-156.117302,0.00024658,2]
[425969081,1782059448000,-1540.0,0.00024709,2]
[425969075,1782059448000,-151.0,0.00024658,2]
[425969079,1782059448000,-3536.99453995,0.00024674,2]
[425969082,1782059448000,-500.0,0.00024732,2]
[425969084,1782059448000,-150.0,0.00024762,2]
[425969083,1782059448000,-500.0,0.00024732,2]
[425969085,1782059448000,-150.0,0.00024762,2]
[425969086,1782059448000,-150.0,0.00024762,2]
[425969080,1782059448000,-195.871,0.000247,11]
[425969093,1782059448000,-235.45835666,0.00024802,2]
[425969088,1782059448000,-2136.0,0.00024794,3]
[425969107,1782059448000,-166.79828106,0.00025,10]
[425969097,1782059448000,-169.49623291,0.00024929,2]
[425969095,1782059448000,-1100.0,0.000249,9]
[425969092,1782059448000,-165.29683498,0.00024802,2]
[425969094,1782059448000,-2397.54,0.00024826,7]
[425969128,1782059448000,-396.29,0.0002539,2]
[425969096,1782059448000,-200.0,0.00024918,2]
[425969087,1782059448000,-500.0,0.00024776,2]
[425969089,1782059448000,-242.15909246,0.00024802,2]
[425969091,1782059448000,-2884.75459676,0.00024802,2]
[425969090,1782059448000,-501.38597833,0.00024802,2]
[425969166,1782059449000,-500.0,0.00025499,2]
[425969165,1782059449000,-500.0,0.00025499,2]
[425969163,1782059449000,-585.66,0.00025499,2]
[425969167,1782059449000,-500.0,0.00025499,2]
[425969160,1782059449000,-573.57,0.00025432,2]
[425969161,1782059449000,-18425.37276819,0.00025436,2]
[425969162,1782059449000,-185.21,0.00025438,2]
[425969169,1782059449000,-500.0,0.00025499,2]
[425969157,1782059449000,-644.31,0.00025432,2]
[425969170,1782059449000,-500.0,0.00025499,2]
[425969164,1782059449000,-585.66,0.00025499,2]
[425969173,1782059449000,-500.0,0.00025499,2]
[425969194,1782059449000,-500.0,0.00025499,2]
[425969179,1782059449000,-500.0,0.00025499,2]
[425969171,1782059449000,-500.0,0.00025499,2]
[425969181,1782059449000,-500.0,0.00025499,2]
[425969184,1782059449000,-500.0,0.00025499,2]
[425969183,1782059449000,-500.0,0.00025499,2]
[425969182,1782059449000,-500.0,0.00025499,2]
[425969175,1782059449000,-500.0,0.00025499,2]
[425969177,1782059449000,-500.0,0.00025499,2]
[425969178,1782059449000,-500.0,0.00025499,2]
[425969180,1782059449000,-500.0,0.00025499,2]
[425969186,1782059449000,-500.0,0.00025499,2]
[425969159,1782059449000,-396.28,0.00025432,2]
[425969172,1782059449000,-500.0,0.00025499,2]
[425969168,1782059449000,-500.0,0.00025499,2]
[425969145,1782059449000,-396.26,0.00025432,2]
[425969156,1782059449000,-396.28,0.00025432,2]
[425969185,1782059449000,-500.0,0.00025499,2]
[425969131,1782059449000,-179.38920481,0.00025399,2]
[425969130,1782059449000,-482.42,0.0002539,2]
[425969133,1782059449000,-644.31,0.00025403,2]
[425969143,1782059449000,-644.16,0.00025432,2]
[425969134,1782059449000,-396.29,0.00025403,2]
[425969132,1782059449000,-644.23,0.00025403,2]
[425969136,1782059449000,-485.14,0.00025403,2]
[425969135,1782059449000,-644.33,0.00025403,2]
[425969139,1782059449000,-439.86,0.00025429,2]
[425969138,1782059449000,-396.28,0.00025429,2]
[425969140,1782059449000,-396.28,0.00025429,2]
[425969158,1782059449000,-644.33,0.00025432,2]
[425969137,1782059449000,-206.0,0.00025416,2]
[425969141,1782059449000,-482.42,0.00025429,2]
[425969146,1782059449000,-644.31,0.00025432,2]
[425969144,1782059449000,-482.42,0.00025432,2]
[425969147,1782059449000,-396.28,0.00025432,2]
[425969149,1782059449000,-645.38,0.00025432,2]
[425969151,1782059449000,-573.66,0.00025432,2]
[425969154,1782059449000,-482.43,0.00025432,2]
[425969148,1782059449000,-482.42,0.00025432,2]
[425969150,1782059449000,-482.42,0.00025432,2]
[425969152,1782059449000,-482.42,0.00025432,2]
[425969155,1782059449000,-396.28,0.00025432,2]
[425969153,1782059449000,-396.28,0.00025432,2]
[425969142,1782059449000,-500.0,0.00025431,2]
[425969129,1782059449000,-396.28,0.0002539,2]
[425969195,1782059449000,-500.0,0.00025499,2]
[425969187,1782059449000,-500.0,0.00025499,2]
[425969223,1782059449000,-500.0,0.00025499,2]
[425969221,1782059449000,-500.0,0.00025499,2]
[425969226,1782059449000,-500.0,0.00025499,2]
[425969228,1782059449000,-500.0,0.00025499,2]
[425969224,1782059449000,-500.0,0.00025499,2]
[425969225,1782059449000,-500.0,0.00025499,2]
[425969231,1782059449000,-500.0,0.00025499,2]
[425969227,1782059449000,-500.0,0.00025499,2]
[425969229,1782059449000,-500.0,0.00025499,2]
[425969230,1782059449000,-500.0,0.00025499,2]
[425969233,1782059449000,-500.0,0.00025499,2]
[425969232,1782059449000,-500.0,0.00025499,2]
[425969222,1782059449000,-500.0,0.00025499,2]
[425969234,1782059449000,-500.0,0.00025499,2]
[425969235,1782059449000,-500.0,0.00025499,2]
[425969239,1782059449000,-500.0,0.00025499,2]
[425969240,1782059449000,-500.0,0.00025499,2]
[425969238,1782059449000,-500.0,0.00025499,2]
[425969237,1782059449000,-500.0,0.00025499,2]
[425969241,1782059449000,-500.0,0.00025499,2]
[425969243,1782059449000,-500.0,0.00025499,2]
[425969245,1782059449000,-500.0,0.00025499,2]
[425969246,1782059449000,-500.0,0.00025499,2]
[425969242,1782059449000,-500.0,0.00025499,2]
[425969244,1782059449000,-500.0,0.00025499,2]
[425969188,1782059449000,-500.0,0.00025499,2]
[425969236,1782059449000,-500.0,0.00025499,2]
[425969218,1782059449000,-500.0,0.00025499,2]
[425969247,1782059449000,-500.0,0.00025499,2]
[425969219,1782059449000,-500.0,0.00025499,2]
[425969217,1782059449000,-500.0,0.00025499,2]
[425969193,1782059449000,-500.0,0.00025499,2]
[425969190,1782059449000,-500.0,0.00025499,2]
[425969192,1782059449000,-500.0,0.00025499,2]
[425969191,1782059449000,-500.0,0.00025499,2]
[425969197,1782059449000,-500.0,0.00025499,2]
[425969196,1782059449000,-500.0,0.00025499,2]
[425969206,1782059449000,-500.0,0.00025499,2]
[425969207,1782059449000,-500.0,0.00025499,2]
[425969208,1782059449000,-500.0,0.00025499,2]
[425969199,1782059449000,-500.0,0.00025499,2]
[425969203,1782059449000,-500.0,0.00025499,2]
[425969200,1782059449000,-500.0,0.00025499,2]
[425969189,1782059449000,-500.0,0.00025499,2]
[425969201,1782059449000,-500.0,0.00025499,2]
[425969198,1782059449000,-500.0,0.00025499,2]
[425969220,1782059449000,-500.0,0.00025499,2]
[425969216,1782059449000,-500.0,0.00025499,2]
[425969214,1782059449000,-500.0,0.00025499,2]
[425969213,1782059449000,-500.0,0.00025499,2]
[425969215,1782059449000,-500.0,0.00025499,2]
[425969210,1782059449000,-500.0,0.00025499,2]
[425969211,1782059449000,-500.0,0.00025499,2]
[425969204,1782059449000,-500.0,0.00025499,2]
[425969202,1782059449000,-500.0,0.00025499,2]
[425969205,1782059449000,-500.0,0.00025499,2]
[425969212,1782059449000,-500.0,0.00025499,2]
[425969286,1782059450000,-482.43,0.00026253,2]
[425969285,1782059450000,-482.35,0.00026251,2]
[425969283,1782059450000,-482.43,0.00026251,2]
[425969284,1782059450000,-573.64,0.00026251,2]
[425969278,1782059450000,-185.2,0.00026239,2]
[425969280,1782059450000,-185.2,0.00026239,2]
[425969279,1782059450000,-186.04,0.00026239,2]
[425969288,1782059450000,-482.42,0.00026253,2]
[425969277,1782059450000,-482.42,0.00026227,2]
[425969281,1782059450000,-185.2,0.00026239,2]
[425969282,1782059450000,-11698.56392189,0.00026247,2]
[425969294,1782059450000,-482.42,0.00026254,2]
[425969290,1782059450000,-482.43,0.00026253,2]
[425969300,1782059450000,-644.31,0.0002626,2]
[425969295,1782059450000,-396.28,0.00026254,2]
[425969291,1782059450000,-482.42,0.00026253,2]
[425969297,1782059450000,-396.28,0.0002626,2]
[425969299,1782059450000,-185.18,0.0002626,2]
[425969293,1782059450000,-482.43,0.00026254,2]
[425969312,1782059450000,-4018.421,0.0002637,2]
[425969292,1782059450000,-397.0,0.00026254,2]
[425969298,1782059450000,-185.2,0.0002626,2]
[425969296,1782059450000,-396.24,0.0002626,2]
[425969289,1782059450000,-573.64,0.00026253,2]
[425969287,1782059450000,-482.42,0.00026253,2]
[425969272,1782059450000,-573.64,0.00026212,2]
[425969262,1782059450000,-2054.0,0.00025897,2]
[425969275,1782059450000,-482.42,0.00026225,2]
[425969248,1782059450000,-500.0,0.00025499,2]
[425969253,1782059450000,-26988.0,0.00025555,11]
[425969249,1782059450000,-500.0,0.00025499,2]
[425969250,1782059450000,-550.58235663,0.00025499,2]
[425969252,1782059450000,-597.99374747,0.000255,2]
[425969251,1782059450000,-1926.31169928,0.000255,2]
[425969256,1782059450000,-6976.59868209,0.00025671,2]
[425969255,1782059450000,-6081.0,0.00025669,2]
[425969254,1782059450000,-3560.0,0.00025669,2]
[425969266,1782059450000,-33665.54090853,0.00026,5]
[425969260,1782059450000,-6648.68365062,0.00025833,2]
[425969265,1782059450000,-585.66,0.00025999,2]
[425969259,1782059450000,-5529.0,0.000258,5]
[425969257,1782059450000,-200.0,0.00025672,2]
[425969261,1782059450000,-152.0,0.00025896,3]
[425969258,1782059450000,-3204.0,0.00025786,3]
[425969264,1782059450000,-555.47,0.00025966,2]
[425969263,1782059450000,-260.4103811,0.00025898,2]
[425969268,1782059450000,-550.0,0.00026,2]
[425969271,1782059450000,-573.59,0.00026212,2]
[425969267,1782059450000,-1389.7,0.00026,2]
[425969269,1782059450000,-6976.59868209,0.00026087,2]
[425969270,1782059450000,-573.15363215,0.00026101,2]
[425969274,1782059450000,-396.19,0.00026225,2]
[425969276,1782059450000,-482.42,0.00026225,2]
[425969273,1782059450000,-482.42,0.00026225,2]
[425969302,1782059450000,-185.2,0.0002626,2]
[425969308,1782059450000,-185.06,0.0002626,2]
[425969303,1782059450000,-644.31,0.0002626,2]
[425969338,1782059450000,-280.03725111,0.00026994,2]
[425969334,1782059450000,-250.01,0.00026849,8]
[425969337,1782059450000,-748.11,0.000269,7]
[425969335,1782059450000,-185.53,0.00026849,8]
[425969336,1782059450000,-200.0,0.000269,9]
[425969342,1782059450000,-7000.0,0.00027,4]
[425969353,1782059450000,-482.42,0.00027049,2]
[425969352,1782059450000,-482.42,0.00027047,2]
[425969343,1782059450000,-7500.0,0.00027,2]
[425969351,1782059450000,-482.33,0.00027047,2]
[425969346,1782059450000,-11136.51353293,0.00027,2]
[425969339,1782059450000,-585.66,0.00026999,2]
[425969347,1782059450000,-9491.40393929,0.00027005,2]
[425969350,1782059450000,-6162.72578074,0.00027029,2]
[425969345,1782059450000,-336.0,0.00027,2]
[425969349,1782059450000,-4272.0,0.00027025,10]
[425969348,1782059450000,-693.08,0.00027019,30]
[425969358,1782059450000,-644.31,0.00027057,2]
[425969354,1782059450000,-482.4,0.00027056,2]
[425969359,1782059450000,-644.33,0.00027057,2]
[425969356,1782059450000,-185.21,0.00027057,2]
[425969355,1782059450000,-185.21,0.00027056,2]
[425969357,1782059450000,-185.05,0.00027057,2]
[425969301,1782059450000,-395.42,0.0002626,2]
[425969344,1782059450000,-300.0,0.00027,3]
[425969340,1782059450000,-200529.86858856,0.00027,2]
[425969341,1782059450000,-300.0,0.00027,28]
[425969332,1782059450000,-6976.59868209,0.00026821,2]
[425969305,1782059450000,-482.4,0.0002626,2]
[425969304,1782059450000,-185.21,0.0002626,2]
[425969333,1782059450000,-1148.1203,0.00026844,2]
[425969306,1782059450000,-644.31,0.0002626,2]
[425969310,1782059450000,-2296.2406,0.0002637,2]
[425969309,1782059450000,-208.8,0.00026296,2]
[425969311,1782059450000,-4018.421,0.0002637,2]
[425969313,1782059450000,-350.95959,0.00026388,2]
[425969316,1782059450000,-200.0,0.00026426,2]
[425969314,1782059450000,-362.534365,0.00026388,2]
[425969315,1782059450000,-227.52920536,0.00026397,2]
[425969320,1782059450000,-7500.0,0.000265,2]
[425969319,1782059450000,-12125.11896998,0.00026475,2]
[425969307,1782059450000,-185.2,0.0002626,2]
[425969323,1782059450000,-150.0,0.00026573,2]
[425969317,1782059450000,-2397.54,0.00026435,7]
[425969330,1782059450000,-15000.0,0.00026752,2]
[425969328,1782059450000,-6976.59868209,0.00026729,2]
[425969329,1782059450000,-12822.93783105,0.00026731,2]
[425969327,1782059450000,-33587.0,0.00026666,9]
[425969331,1782059450000,-278.13044591,0.00026813,2]
[425969326,1782059450000,-6281.91,0.00026591,2]
[425969322,1782059450000,-1694.0,0.0002657,2]
[425969318,1782059450000,-270.0455652,0.00026446,2]
[425969324,1782059450000,-500.0,0.00026575,7]
[425969325,1782059450000,-9999.99,0.00026591,2]
[425969373,1782059451000,-644.26,0.00027082,2]
[425969381,1782059451000,-14446.6800873,0.00027104,2]
[425969386,1782059451000,-613.66351852,0.00027123,2]
[425969380,1782059451000,-18425.37276819,0.00027104,2]
[425969378,1782059451000,-185.19,0.00027082,2]
[425969377,1782059451000,-482.43,0.00027082,2]
[425969376,1782059451000,-482.4,0.00027082,2]
[425969371,1782059451000,-573.58,0.00027076,2]
[425969375,1782059451000,-573.58,0.00027082,2]
[425969372,1782059451000,-396.28,0.00027082,2]
[425969362,1782059451000,-644.33,0.00027057,2]
[425969369,1782059451000,-573.64,0.00027076,2]
[425969370,1782059451000,-482.43,0.00027076,2]
[425969367,1782059451000,-482.42,0.00027075,2]
[425969368,1782059451000,-396.28,0.00027076,2]
[425969361,1782059451000,-396.07,0.00027057,2]
[425969363,1782059451000,-186.13,0.00027061,2]
[425969364,1782059451000,-644.33,0.00027061,2]
[425969360,1782059451000,-396.24,0.00027057,2]
[425969365,1782059451000,-185.18,0.00027061,2]
[425969385,1782059451000,-2118.0,0.00027123,2]
[425969374,1782059451000,-482.42,0.00027082,2]
[425969388,1782059451000,-604.0,0.00027123,2]
[425969366,1782059451000,-644.31,0.00027061,2]
[425969379,1782059451000,-2568.0,0.00027085,2]
[425969384,1782059451000,-259.0,0.00027123,2]
[425969406,1782059451000,-1027629.38982885,0.00027197,2]
[425969405,1782059451000,-585.89228116,0.00027196,2]
[425969403,1782059451000,-585.66,0.00027196,2]
[425969404,1782059451000,-585.66,0.00027196,2]
[425969402,1782059451000,-585.66,0.00027196,2]
[425969407,1782059451000,-34111.14178944,0.00027197,2]
[425969396,1782059451000,-30000.0,0.00027196,2]
[425969395,1782059451000,-200.0,0.0002718,2]
[425969394,1782059451000,-12125.11896998,0.00027175,2]
[425969393,1782059451000,-6162.72578074,0.00027169,2]
[425969401,1782059451000,-585.66,0.00027196,2]
[425969400,1782059451000,-585.66,0.00027196,2]
[425969391,1782059451000,-509.0,0.00027137,2]
[425969399,1782059451000,-585.66,0.00027196,2]
[425969392,1782059451000,-585.66,0.00027167,2]
[425969389,1782059451000,-8855.95739871,0.00027131,2]
[425969398,1782059451000,-39306.61215689,0.00027196,10]
[425969397,1782059451000,-12329.73713696,0.00027196,25]
[425969390,1782059451000,-12125.11896998,0.00027131,2]
[425969387,1782059451000,-185.0,0.00027123,2]
[425969383,1782059451000,-306.83175926,0.00027123,2]
[425969382,1782059451000,-3206.23114603,0.00027119,2]
[425969409,1782059453000,-163.67306325,0.00024,2]
[425969408,1782059453000,-157.0,0.00023,2]
[425969410,1782059453000,-452.32693675,0.00027197,2]
[425969414,1782059453000,-22329.05960184,0.00027197,2]
[425969412,1782059453000,-154345.0827368,0.00027197,2]
[425969413,1782059453000,-2572.26859286,0.00027197,2]
[425969411,1782059453000,-7416.63204083,0.00027197,2]
[425969416,1782059454000,-318.37170789,0.00013698,2]
[425969415,1782059454000,-500.0,0.00013698,2]
[425969417,1782059495000,170.311856,0.00027386,120]
[425969418,1782059508000,150.0,0.00030136,120]
[425969419,1782059509000,1001.0,0.00029041,120]
[425969420,1782059527000,-500.0,0.0001074,2]
[425969421,1782059540000,532.7,0.000299,120]
[425969422,1782059549000,166.632023,0.00026849,120]
[425969423,1782059581000,-500.0,0.0001074,2]
[425969424,1782059635000,-500.0,0.0001074,2]
[425969425,1782059688000,-235.41045973,0.00010739,2]
[425969426,1782059741000,-500.0,0.0001074,2]
[425969427,1782059795000,-500.0,0.0001074,2]
[425969428,1782059848000,-500.0,0.00010743,2]
[425969429,1782059902000,-462.54752508,0.00010743,2]
[425969430,1782059955000,-150.0,0.00010744,2]
[425969431,1782060009000,-175.71932388,0.00010744,2]
[425969432,1782060193000,-150.0,0.0001075,2]
[425969433,1782060246000,-216.32317309,0.00010752,2]
[425969435,1782060300000,-160.0,0.00010755,2]
[425969436,1782060353000,-150.0,0.00011109,2]
[425969437,1782060386000,468.2,0.00030136,120]
[425969438,1782060407000,-250.0,0.00011102,2]
[425969439,1782060411000,150.0,0.00030136,120]
[425969440,1782060461000,-151.0,0.00011246,2]
[425969441,1782060506000,468.2,0.00030136,120]
[425969442,1782060546000,-151.0,0.00011246,2]
[425969443,1782060546000,-151.0,0.00011246,2]
[425969446,1782060546000,-150.0,0.00011412,2]
[425969445,1782060546000,-238.73824415,0.00011246,2]
[425969444,1782060546000,-152.0,0.00011246,2]
[425969447,1782060590000,1112.38,0.00029452,120]
[425969450,1782060631000,-153.0,0.00011526,2]
[425969451,1782060631000,-150.0,0.00011526,2]
[425969452,1782060631000,-150.0,0.00011526,2]
[425969456,1782060631000,-150.0,0.00011603,2]
[425969454,1782060631000,-151.0,0.00011544,2]
[425969453,1782060631000,-152.0,0.0001153,2]
[425969455,1782060631000,-151.0,0.00011544,2]
[425969460,1782060631000,-250.0,0.00012371,2]
[425969462,1782060631000,-142.53541311,0.00013207,2]
[425969458,1782060631000,-216.32317309,0.00011829,2]
[425969461,1782060631000,-520.4906738,0.00012371,2]
[425969459,1782060631000,-160.0,0.00011829,2]
[425969457,1782060631000,-150.0,0.00011664,2]
[425969499,1782060632000,-503.28668151,0.00013698,2]
[425969485,1782060632000,-500.0,0.00013698,2]
[425969486,1782060632000,-500.0,0.00013698,2]
[425969487,1782060632000,-500.0,0.00013698,2]
[425969489,1782060632000,-500.0,0.00013698,2]
[425969488,1782060632000,-500.0,0.00013698,2]
[425969490,1782060632000,-500.0,0.00013698,2]
[425969494,1782060632000,-500.0,0.00013698,2]
[425969492,1782060632000,-500.0,0.00013698,2]
[425969493,1782060632000,-500.0,0.00013698,2]
[425969502,1782060632000,-141.17970444,0.00013698,2]
[425969497,1782060632000,-500.0,0.00013698,2]
[425969495,1782060632000,-500.0,0.00013698,2]
[425969491,1782060632000,-282.56599884,0.00013698,2]
[425969481,1782060632000,-500.0,0.00013698,2]
[425969500,1782060632000,-515.55433603,0.00013698,2]
[425969496,1782060632000,-505.19198669,0.00013698,2]
[425969478,1782060632000,-259.85472851,0.00013698,2]
[425969471,1782060632000,-299.99,0.00013275,2]
[425969480,1782060632000,-500.0,0.00013698,2]
[425969463,1782060632000,-695.86671089,0.00013207,2]
[425969467,1782060632000,-9999.99,0.00013274,2]
[425969466,1782060632000,-999.99,0.00013274,2]
[425969464,1782060632000,-208.54703924,0.00013274,2]
[425969465,1782060632000,-226.44216634,0.00013274,2]
[425969468,1782060632000,-1297.68927704,0.00013275,2]
[425969475,1782060632000,-500.0,0.00013698,2]
[425969469,1782060632000,-15881.46127798,0.00013275,2]
[425969474,1782060632000,-150.0,0.00013696,2]
[425969472,1782060632000,-150.99,0.00013275,2]
[425969473,1782060632000,-12139.37,0.00013275,2]
[425969470,1782060632000,-9999.99,0.00013275,2]
[425969476,1782060632000,-500.0,0.00013698,2]
[425969477,1782060632000,-500.0,0.00013698,2]
[425969483,1782060632000,-500.0,0.00013698,2]
[425969479,1782060632000,-500.0,0.00013698,2]
[425969482,1782060632000,-524.95779422,0.00013698,2]
[425969484,1782060632000,-500.0,0.00013698,2]
[425969501,1782060632000,-358.82029556,0.00013698,2]
[425969498,1782060632000,-500.0,0.00013698,2]
[425969507,1782060632000,-500.0,0.00013698,2]
[425969527,1782060632000,-500.0,0.00016438,2]
[425969525,1782060632000,-5057.74,0.00016308,2]
[425969526,1782060632000,-500.0,0.00016438,2]
[425969529,1782060632000,-500.0,0.00016438,2]
[425969532,1782060632000,-500.0,0.00016438,2]
[425969530,1782060632000,-387.90503965,0.00016438,2]
[425969531,1782060632000,-500.0,0.00016438,2]
[425969533,1782060632000,-500.0,0.00016438,2]
[425969536,1782060632000,-500.0,0.00016438,2]
[425969539,1782060632000,-692.58640636,0.00016676,2]
[425969541,1782060632000,-168.84,0.00016712,2]
[425969538,1782060632000,-4125.79,0.00016641,2]
[425969535,1782060632000,-500.0,0.00016438,2]
[425969542,1782060632000,-157.87,0.00016775,2]
[425969537,1782060632000,-166.66,0.00016544,2]
[425969543,1782060632000,-138.85114779,0.00016835,2]
[425969504,1782060632000,-500.0,0.00013698,2]
[425969528,1782060632000,-500.0,0.00016438,2]
[425969523,1782060632000,-1020.13,0.00016197,2]
[425969540,1782060632000,-200.0,0.00016703,2]
[425969524,1782060632000,-1613.0535,0.00016287,2]
[425969506,1782060632000,-500.0,0.00013698,2]
[425969534,1782060632000,-500.0,0.00016438,2]
[425969503,1782060632000,-500.0,0.00013698,2]
[425969509,1782060632000,-500.0,0.00013698,2]
[425969505,1782060632000,-500.0,0.00013698,2]
[425969512,1782060632000,-500.0,0.00013699,2]
[425969510,1782060632000,-500.0,0.00013698,2]
[425969520,1782060632000,-1555.5,0.00015739,2]
[425969513,1782060632000,-6224.5,0.00013699,2]
[425969508,1782060632000,-500.0,0.00013698,2]
[425969514,1782060632000,-598.05,0.000139,2]
[425969515,1782060632000,-250.0,0.00014,2]
[425969519,1782060632000,-480.73832787,0.00015473,2]
[425969516,1782060632000,-151.0,0.00014205,2]
[425969517,1782060632000,-555.22000029,0.00014875,2]
[425969518,1782060632000,-1500.0,0.00015191,2]
[425969511,1782060632000,-500.0,0.00013698,2]
[425969522,1782060632000,-300.0,0.00016,2]
[425969521,1782060632000,-1156.93751265,0.00015906,2]
[425969575,1782060640000,-213.64,0.0001999,3]
[425969580,1782060640000,-1000.0,0.00019999,2]
[425969578,1782060640000,-600.45,0.0001999,3]
[425969576,1782060640000,-400.3,0.0001999,3]
[425969574,1782060640000,-2391.70349025,0.000199,2]